[Event "13th Chennai Open 2022"]
[Site "Chennai"]
[Date "2022.06.23"]
[Round "7.10"]
[White "Nguyen, Duc Hoa"]
[Black "Arpith S Bijoy"]
[Result "1-0"]
[ECO "E06"]
[WhiteElo "2398"]
[BlackElo "1713"]
[Annotator "TA"]
[PlyCount "45"]
[EventDate "2022.06.19"]
[EventType "swiss"]
[EventCountry "IND"]
[SourceTitle "playchess.com"]
[Source "ChessBase"]
[SourceQuality "1"]
[TimeControl "5400+30"]

{[%evp 20,45,36,36,72,44,111,110,114,115,109,115,166,161,200,194,222,206,211,208,381,365,431,445,441,398,425,416]} 1. d4 {[%emt 0:00:02]} d5 {[%emt 0:00:16]} 2. c4 {[%emt 0:00:06]} e6 {[%emt 0:00:15]} 3. Nf3 {[%emt 0:00:07]} Nf6 {[%emt 0:00:43]} 4. g3 {[%emt 0:00:16]} c5 {[%emt 0:00:25]} 5. cxd5 {[%emt 0:00:13]} exd5 {[%emt 0:00:23]} 6. Bg2 {[%emt 0:00:26]} Nc6 {[%emt 0:01:24]} 7. O-O {[%emt 0:00:33]} Be7 {[%emt 0:00:21]} 8. dxc5 {[%emt 0:03:34]} Bxc5 {[%emt 0:00:38]} 9. a3 {[%emt 0:00:46]} a5 {[%emt 0:02:09]} 10. Nc3 {[%emt 0:00:30]} O-O {[%emt 0:01:36]} 11. Bg5 {[%emt 0:00:50]} Be6 {[%emt 0:23:12] E06: Closed Catalan: Early deviations.} 12. Rc1 {[%emt 0:00:59] [#]} h6 $146 {[%emt 0:04:15]} ({Black should play} 12... Ba7 $14) ({Predecessor:} 12... Ba7 13. Nb5 h6 14. Nxa7 Rxa7 15. Be3 Ra8 16. Nd4 Nxd4 17. Qxd4 Rc8 18. Rxc8 Qxc8 19. Bxh6 {1-0 (29) Garcia Garcia,A (2247)-Zaichenko,D (2104) Chess.com INT 2021}) 13. Bxf6 $16 {[%emt 0:03:20]} Qxf6 {[%emt 0:00:36] White is better.} 14. Nxd5 {[%emt 0:00:26]} Bxd5 {[%emt 0:00:08]} 15. Qxd5 {[%emt 0:01:04]} Bb6 {[%emt 0:03:35] [#]} (15... b6 $16) 16. e3 $1 $18 {[%emt 0:00:53]} Ba7 {[%emt 0:31:28]} 17. Qb5 {[%emt 0:00:42]} Qe7 {[%emt 0:00:17]} 18. Nh4 {[%emt 0:03:23][%cal Bf3h4,Bh4f5,Bf5e3][%mdl 32]} Ne5 {[%emt 0:03:37]} 19. Rfd1 {[%emt 0:00:22]} ({Don't take} 19. Bxb7 $6 Rab8 $16) (19. Qxb7 $6 Qxb7 20. Bxb7 Rab8) 19... Ng4 $2 {[%emt 0:07:48] [#]} (19... g6 {was necessary.} 20. h3 (20. Bxb7 Rab8 $15) (20. Qxb7 Qxb7 21. Bxb7 Rab8 $18) 20... a4) 20. Nf5 {[%emt 0:00:33]} Qe5 {[%emt 0:05:11]} 21. Rd5 {[%emt 0:01:15]} Qe6 {[%emt 0:01:55]} 22. Bf3 {[%emt 0:05:13]} Nxe3 {[%emt 0:03:17]} 23. Nxe3 {[%emt 0:00:12] Black did not feel at home in the position after the opening.  Weighted Error Value: White=0.00 (flawless) /Black=0.46} ({Weaker is} 23. Re5 Nxf5 24. Rxe6 Nd4 $18) 1-0

[Event "13th Chennai Open 2022"]
[Site "Chennai"]
[Date "2022.06.23"]
[Round "7.11"]
[White "Prasannaa.s"]
[Black "Harsh Suresh"]
[Result "1-0"]
[ECO "A41"]
[WhiteElo "2164"]
[BlackElo "2392"]
[Annotator "TA"]
[PlyCount "113"]
[EventDate "2022.06.19"]
[EventType "swiss"]
[EventCountry "IND"]
[SourceTitle "playchess.com"]
[Source "ChessBase"]
[SourceQuality "1"]
[TimeControl "5400+30"]

{[%evp 13,113,44,93,41,67,22,29,0,0,0,0,0,0,0,9,-30,0,-32,0,0,0,-10,0,0,0,0,106,112,118,114,113,106,102,110,90,71,78,71,174,165,564,172,170,71,68,94,164,143,175,178,181,192,176,197,194,186,212,181,310,304,277,270,341,300,395,374,452,426,622,622,627,560,1341,1085,1112,1491,1578,1416,1300,1204,1006,933,1562,1093,1501,1375,29977,29978,29978,29979,29979,29980,29980,29981,29978,29981,29980,29981,29982,29984,29984,29983]} 1. e4 {[%emt 0:02:14]} g6 {[%emt 0:00:01]} 2. d4 {[%emt 0:00:26]} Bg7 {[%emt 0:00:02]} 3. c4 {[%emt 0:01:59]} d6 {[%emt 0:02:00]} 4. Nc3 {[%emt 0:00:06]} e5 {[%emt 0:08:44]} 5. dxe5 {[%emt 0:03:38]} dxe5 {[%emt 0:00:20]} 6. Qxd8+ {[%emt 0:00:12]} Kxd8 {[%emt 0:00:02]} 7. Nf3 {[%emt 0:01:31][%cal Bg1f3,Bf3d2,Bd2b3][%mdl 32]} c6 {[%emt 0:07:07]} (7... Nc6 $14 {might be stronger.}) 8. c5 {[%emt 0:05:59] A41: 1 d4 d6: Tartakower System and Modern Defence.} (8. b4 $16) 8... Nd7 {[%emt 0:09:59]} 9. Be3 {[%emt 0:01:19] [#]} f6 $146 {[%emt 0:05:12]} (9... Ke7 {feels hotter.} 10. Bc4 f6 11. g4 Nf8) ({Predecessor:} 9... Bh6 10. O-O-O Ke7 11. b4 Bxe3+ 12. fxe3 Ngf6 13. Bc4 Ne8 14. Rhf1 f6 15. Nd2 Nf8 {½-½ (26) Mukashev,A (2125)-Bogachkov,I (2324) Moscow 2009}) 10. Nd2 {[%emt 0:04:24] White has an edge.} Bh6 {[%emt 0:03:12]} 11. Nb3 {[%emt 0:01:45]} Bxe3 {[%emt 0:03:00]} 12. fxe3 {[%emt 0:00:02]} Nh6 {[%emt 0:00:11]} 13. Bc4 {[%emt 0:01:41]} Ke7 {[%emt 0:02:13]} 14. Ke2 {[%emt 0:01:23]} Nf8 {[%emt 0:11:45]} 15. h3 {[%emt 0:03:02]} b5 {[%emt 0:15:18]} (15... Ne6 {with more complications.} 16. Rhf1 b6 17. cxb6 axb6 18. a4 Nf7) 16. cxb6 {[%emt 0:01:43]} axb6 {[%emt 0:00:02]} 17. a4 {[%emt 0:00:09][%cal Ba2a4,Ba4a5,Ba5b6,Bb6b7][%mdl 32]} Nf7 {[%emt 0:00:06]} 18. Bxf7 {[%emt 0:03:13]} Kxf7 {[%emt 0:00:01]} 19. a5 {[%emt 0:00:39]} Be6 {[%emt 0:00:37] [#]} (19... bxa5 $11 20. Nxa5 (20. Rxa5 Rxa5 21. Nxa5 Ne6 $15) 20... Ne6) 20. axb6 $1 $16 {[%emt 0:02:55]} Rxa1 {[%emt 0:00:03]} 21. Rxa1 {[%emt 0:06:07]} (21. Nxa1 Nd7 $15) 21... Bxb3 {[%emt 0:16:58]} 22. Ra7+ {[%emt 0:00:50]} Nd7 {[%emt 0:00:29]} 23. Rxd7+ {[%emt 0:00:06][%mdl 4096] Endgame KRB-KRN} Ke6 {[%emt 0:00:01]} 24. Rg7 {[%emt 0:04:04] White is more active.} Rb8 {[%emt 0:04:12]} 25. b7 {[%emt 0:00:06]} h5 {[%emt 0:00:50]} (25... Bc4+ $16 26. Kf3 Ba6) 26. h4 $18 {[%emt 0:04:48]} g5 $2 {[%emt 0:03:01]} (26... Kd6 {is a better chance.} 27. Kf2 (27. Rxg6 Ke7 $14) 27... Ke6) 27. hxg5 $2 {[%emt 0:05:32]} (27. g4 Bc4+ 28. Kf2) 27... fxg5 {[%emt 0:00:03]} 28. Rg6+ {[%emt 0:01:09]} (28. g4 $18 {and White stays clearly on top.}) 28... Kf7 {[%emt 0:01:35]} 29. Rxg5 {[%emt 0:00:09] White leaves nothing to chance now.} Rxb7 {[%emt 0:00:13]} (29... Be6 $16) 30. Rxh5 {[%emt 0:01:20] Strongly threatening Rh7+.} (30. Rxe5 Be6 $16) 30... Bc4+ {[%emt 0:00:06]} 31. Kf3 {[%emt 0:01:28] Threatens to win with Rh7+.} Rxb2 {[%emt 0:00:39]} 32. Rxe5 {[%emt 0:00:03]} Rc2 {[%emt 0:00:14] [#]} 33. Na4 {[%emt 0:01:10]} Be2+ {[%emt 0:02:21] [#]} 34. Kg3 $1 {[%emt 0:01:10]} Kg7 {[%emt 0:00:21]} 35. Rg5+ {[%emt 0:01:00]} Kf7 {[%emt 0:01:15]} (35... Kf6 {was worth a try.} 36. Rf5+ Ke6 37. Nc5+ Ke7) 36. Rc5 {[%emt 0:00:39]} Rd2 {[%emt 0:00:02]} 37. Nc3 {[%emt 0:00:42] And now Rf5+ would win.} ({Don't play} 37. Rxc6 $6 Bf1 38. Kf4 Rxg2 $18) 37... Ba6 {[%emt 0:00:29]} 38. Kf3 {[%emt 0:00:57]} ({Don't do} 38. Rxc6 Bf1 39. Nd5 Bxg2 40. Rc7+ Kf8 $18) 38... Bb7 {[%emt 0:00:08]} 39. Ne2 {[%emt 0:00:46]} Ke6 {[%emt 0:00:07]} 40. e5 {[%emt 0:00:11]} Kd7 {[%emt 0:00:27]} (40... Kf7 $142 41. Nd4 Bc8 42. Nxc6 Bb7) 41. g4 {[%emt 0:01:29]} Kc7 {[%emt 0:00:07]} 42. Nd4 {[%emt 0:03:30]} Kb6 {[%emt 0:00:39] [#]} 43. e6 $1 {[%emt 0:01:10] Black must now prevent e7.} Kxc5 {[%emt 0:01:49]} (43... Rh2 44. e7) 44. e7 {[%emt 0:00:42]} ({Not} 44. Nb3+ Kd6 45. Nxd2 Kxe6 $16) 44... Kb6 {[%emt 0:00:06]} 45. e8=Q {[%emt 0:01:43] Qd8+ is the strong threat.} c5+ {[%emt 0:00:03]} 46. Kf4 {[%emt 0:00:37] Threatening mate with Qb5+.} cxd4 {[%emt 0:00:03] KQ-KRB} 47. Qd8+ {[%emt 0:00:10]} Kb5 {[%emt 0:01:25]} 48. exd4 {[%emt 0:00:32]} Bg2 {[%emt 0:00:51]} 49. Ke3 {[%emt 0:00:29]} Rd1 {[%emt 0:00:05]} 50. Qb8+ {[%emt 0:00:25] White mates.} Kc4 {[%emt 0:00:47]} 51. Qc7+ {[%emt 0:00:29]} Kb3 {[%emt 0:00:17]} 52. Qb6+ {[%emt 0:00:19]} Kc3 {[%emt 0:00:21]} 53. Qc5+ {[%emt 0:00:32]} Kb3 {[%emt 0:00:03]} 54. Qb5+ {[%emt 0:00:07]} Kc3 {[%emt 0:00:25]} 55. Qe2 {[%emt 0:01:09][%csl LRd1,LRg2]} Rxd4 {[%emt 0:00:32]} 56. Qxg2 {[%emt 0:00:34]} Rd3+ {[%emt 0:00:05]} 57. Ke4 {[%emt 0:00:07] Weighted Error Value: White=0.25 (precise) /Black=0.55} 1-0

[Event "13th Chennai Open 2022"]
[Site "Chennai"]
[Date "2022.06.23"]
[Round "7.13"]
[White "Gusain, Himal"]
[Black "Daksh Goyal"]
[Result "1-0"]
[ECO "D00"]
[WhiteElo "2396"]
[BlackElo "1795"]
[Annotator "TA"]
[PlyCount "99"]
[EventDate "2022.06.19"]
[EventType "swiss"]
[EventCountry "IND"]
[SourceTitle "playchess.com"]
[Source "ChessBase"]
[SourceQuality "1"]
[TimeControl "5400+30"]

{[%evp 9,99,0,-9,-13,0,0,0,-16,-6,-6,-7,-11,16,18,16,8,18,27,27,20,45,-29,-29,-47,0,-61,47,39,76,73,69,72,89,89,148,65,67,73,70,70,154,147,164,159,255,254,276,266,227,233,268,232,337,316,294,86,87,87,101,106,103,85,139,133,190,197,200,204,209,190,243,262,341,333,277,277,287,160,160,148,146,156,159,147,718,716,704,679,645,603,522,416]} 1. d4 {[%emt 0:05:11]} d5 {[%emt 0:01:23]} 2. Bf4 {[%emt 0:00:08]} Nf6 {[%emt 0:00:41]} 3. Nc3 {[%emt 0:00:07]} e6 {[%emt 0:01:30]} 4. Nb5 {[%emt 0:00:27]} Na6 {[%emt 0:00:21]} 5. e3 {[%emt 0:00:09]} Be7 {[%emt 0:03:07]} 6. Nf3 {[%emt 0:00:48] D00: 1 d4 d5: Unusual lines.} Nh5 {[%emt 0:05:49]} 7. Be5 {[%emt 0:00:19]} f6 {[%emt 0:02:47] [#]} 8. g4 $146 {[%emt 0:00:40] The position is equal.} ({Predecessor:} 8. Bg3 O-O 9. c4 c5 10. Nc3 cxd4 11. Nxd4 Nxg3 12. hxg3 Nc7 13. Bd3 f5 14. g4 {1-0 (41) Niemann,H (2645)-Sadhwani,R (2616) Warsaw 2021}) 8... fxe5 {[%emt 0:02:02]} 9. Nxe5 {[%emt 0:00:05]} (9. gxh5 exd4 10. Nbxd4 c5 11. Bxa6 (11. Bb5+ Bd7 $17) 11... Qa5+ 12. Qd2 Qxa6 $17) 9... Nf6 {[%emt 0:16:46] And now ...Nd7 would win.} 10. g5 {[%emt 0:00:05]} Ne4 {[%emt 0:15:12] Threatens to win with ...0-0.} 11. Qh5+ {[%emt 0:00:06]} g6 {[%emt 0:06:42]} 12. Nxg6 {[%emt 0:00:10]} hxg6 {[%emt 0:00:19]} 13. Qxh8+ {[%emt 0:00:03]} Kd7 {[%emt 0:11:35]} 14. Qxd8+ {[%emt 0:06:17]} Kxd8 {[%emt 0:00:21]} 15. Bd3 {[%emt 0:00:07]} (15. h4 $14) 15... Nxg5 $11 {[%emt 0:05:09][%cal Oe6e5]} ({Don't play} 15... Bxg5 16. Bxe4 dxe4 17. Rg1 $16) 16. Bxg6 {[%emt 0:00:05]} e5 {[%emt 0:03:05]} (16... c6 $15 17. Nc3 e5 18. dxe5 Nf3+ 19. Ke2 Nxe5) 17. O-O-O {[%emt 0:01:23]} ({Better is} 17. dxe5 $11 Nf3+ 18. Ke2 Nxe5 19. Rag1) 17... e4 {[%emt 0:02:24]} ({Black should try} 17... c6 $15 18. Nc3 Nh3) 18. h4 $14 {[%emt 0:00:10]} Nh3 {[%emt 0:02:24]} 19. Rh2 {[%emt 0:03:30]} c6 {[%emt 0:04:47]} 20. Nc3 {[%emt 0:00:05]} Bd6 {[%emt 0:01:26]} 21. Rg2 {[%emt 0:00:06][%cal Og6f5] aiming for Bf5!} Ke7 {[%emt 0:00:47]} (21... Nc7 $142) 22. Rf1 {[%emt 0:00:29]} (22. Bh5 $1 $16) 22... Be6 {[%emt 0:03:49]} 23. f4 {[%emt 0:00:30]} exf3 {[%emt 0:03:56]} 24. Rxf3 {[%emt 0:00:06] Strongly threatening Bd3.} Rf8 {[%emt 0:03:53]} ({Black should play} 24... Rh8 $14) 25. Bh5 {[%emt 0:03:36]} Rxf3 {[%emt 0:02:02]} 26. Bxf3 {[%emt 0:00:04]} Kf6 {[%emt 0:00:39]} (26... Nc7 $16 27. h5 Kf6) 27. Bg4 {[%emt 0:02:39]} Nc7 {[%emt 0:00:25]} 28. Nd1 {[%emt 0:02:51]} Bxg4 {[%emt 0:00:37]} 29. Rxg4 {[%emt 0:00:05]} Ne6 {[%emt 0:00:26]} 30. Kd2 $1 {[%emt 0:00:58]} Ng7 {[%emt 0:00:27] [#]} (30... b6 {was necessary.} 31. Ke2 c5) 31. Ke2 $1 $18 {[%emt 0:00:48]} Nf5 {[%emt 0:00:37]} 32. Nf2 $2 {[%emt 0:00:41]} (32. Kf3 $18) 32... Nxf2 $16 {[%emt 0:00:29]} 33. Kxf2 {[%emt 0:00:07]} Bf8 {[%emt 0:00:24]} 34. e4 {[%emt 0:01:06]} dxe4 {[%emt 0:00:35]} 35. Rxe4 {[%emt 0:00:06]} Bd6 {[%emt 0:00:26]} (35... Bh6 $142) 36. Kf3 {[%emt 0:02:09]} c5 {[%emt 0:00:35]} (36... Bf8 $16 37. c4 Bd6) 37. d5 $18 {[%emt 0:04:16]} Be5 {[%emt 0:00:29]} 38. c3 {[%emt 0:00:28]} b5 {[%emt 0:00:26]} 39. h5 {[%emt 0:00:53]} Nd6 {[%emt 0:00:36]} (39... a5 $142 40. Rg4 Bd6) 40. Rg4 {[%emt 0:00:11]} Nf7 {[%emt 0:00:31]} 41. Rg6+ {[%emt 0:03:28]} Kf5 {[%emt 0:00:28][%cal Oe5c3]} 42. Ra6 {[%emt 0:02:06]} Bb8 {[%emt 0:00:31]} 43. h6 {[%emt 0:00:33]} (43. Ke3 $18) 43... Bf4 $16 {[%emt 0:00:22]} 44. Rxa7 {[%emt 0:00:27]} Ne5+ {[%emt 0:00:38]} 45. Ke2 {[%emt 0:00:21] Black must now prevent h7.} Bxh6 {[%emt 0:00:10]} 46. Rb7 {[%emt 0:00:36]} Bf8 $2 {[%emt 0:00:46][%mdl 8192] Loses the game.} (46... Ke4 $16 47. Rxb5 (47. d6 Kd5 $16) 47... Kxd5) 47. Rxb5 $18 {[%emt 0:00:08] White is clearly winning.} Ke4 {[%emt 0:00:19]} 48. a4 {[%emt 0:00:17][%cal Ba2a4,Ba4a5,Ba5a6][%mdl 32] Hoping for a5.} Kxd5 {[%emt 0:00:33] [#]} 49. a5 $1 {[%emt 0:00:10]} Nc6 {[%emt 0:01:14]} 50. a6 {Weighted Error Value: White=0.22 (precise) /Black=0.26 (precise)} 1-0

[Event "13th Chennai Open 2022"]
[Site "Chennai"]
[Date "2022.06.23"]
[Round "7.14"]
[White "Rajesh, V A V"]
[Black "Mrithyunjay Mahadevan"]
[Result "1/2-1/2"]
[ECO "D83"]
[WhiteElo "2358"]
[BlackElo "1661"]
[Annotator "TA"]
[PlyCount "192"]
[EventDate "2022.06.19"]
[EventType "swiss"]
[EventCountry "IND"]
[SourceTitle "playchess.com"]
[Source "ChessBase"]
[SourceQuality "1"]
[TimeControl "5400+30"]

{[%evp 15,192,31,12,-41,37,35,23,39,17,31,27,30,87,80,82,64,62,74,64,22,21,32,14,25,14,0,0,0,7,0,40,36,37,27,35,35,28,22,27,17,42,27,44,0,13,0,0,-30,-16,-21,0,0,49,0,20,13,52,61,54,25,24,16,22,28,58,36,143,150,137,99,198,184,237,143,195,191,164,85,158,160,290,263,276,275,243,251,326,320,316,307,308,298,295,279,442,411,408,397,463,419,679,703,702,614,687,677,859,783,652,567,630,489,494,486,518,518,518,518,518,518,493,493,463,112,384,133,376,254,518,418,247,223,432,186,930,853,474,406,835,617,1021,1004,966,856,668,0,0,0,0,0,0,0,0,0,0,0,0,0,0,0,0,0,0,0,0,0,0,0,0,0,0,0,0,0,0,0,0,0,0]} 1. d4 {[%emt 0:00:13]} Nf6 {[%emt 0:00:07]} 2. c4 {[%emt 0:00:16]} g6 {[%emt 0:00:05]} 3. Nc3 {[%emt 0:00:04]} d5 {[%emt 0:00:06]} 4. Bf4 {[%emt 0:01:51]} Bg7 {[%emt 0:00:10]} 5. e3 {[%emt 0:00:52]} O-O {[%emt 0:00:14]} 6. Rc1 {[%emt 0:00:59]} c5 {[%emt 0:00:09]} 7. dxc5 {[%emt 0:00:19]} Be6 {[%emt 0:00:10]} 8. Nf3 {[%emt 0:02:20]} Nc6 {[%emt 0:00:11]} 9. Ne5 {[%emt 0:16:37] D83: Grünfeld: 4 Bf4 Bg7 5 e3 0-0.} ({White should try} 9. Be2 $11) 9... Qa5 {[%emt 0:09:01]} (9... Rc8 $15) 10. Nxc6 $14 {[%emt 0:05:02]} bxc6 {[%emt 0:00:15]} 11. Qa4 $1 {[%emt 0:00:28] White has an edge.} Qxc5 {[%emt 0:01:02][%cal Rd5c4]} 12. b4 {[%emt 0:00:24]} Qb6 {[%emt 0:00:52]} 13. c5 {[%emt 0:00:05]} Qb7 {[%emt 0:06:19]} (13... Qd8 $1 $11) 14. Ba6 $16 {[%emt 0:03:11]} Qd7 {[%emt 0:00:12]} 15. Be5 {[%emt 0:15:34] White is more active.} Ng4 {[%emt 0:06:14]} 16. Bxg7 {[%emt 0:00:50]} Kxg7 {[%emt 0:00:07] [#]} 17. Ne2 $146 {[%emt 0:13:08]} ({Predecessor:} 17. h3 Ne5 18. Rd1 Qc7 19. Ne2 Nc4 20. Qc2 Qe5 21. Nd4 Qg5 22. Nxe6+ fxe6 23. O-O {1-0 (32) Ortega,M (2463)-Paiva,D (2230) Tornelo INT 2021}) 17... Qc7 $1 {[%emt 0:01:48]} 18. h3 {[%emt 0:00:31]} Nf6 {[%emt 0:02:44]} 19. Nd4 {[%emt 0:03:44]} Bd7 {[%emt 0:00:15]} 20. O-O {[%emt 0:00:07]} e5 {[%emt 0:05:29]} 21. Nb3 {[%emt 0:01:43]} Rab8 {[%emt 0:04:33]} 22. a3 {[%emt 0:03:26]} Rfd8 {[%emt 0:05:55]} 23. Qa5 {[%emt 0:02:16]} Ne8 {[%emt 0:00:10]} 24. Rfd1 {[%emt 0:01:21]} Be6 {[%emt 0:12:13][%cal Od5d4]} 25. Qxc7 {[%emt 0:00:23]} Nxc7 {[%emt 0:00:12]} 26. Bf1 {[%emt 0:00:10]} Bd7 {[%emt 0:03:33]} 27. Na5 {[%emt 0:00:18]} Be8 {[%emt 0:00:28]} 28. Rb1 {[%emt 0:01:09][%cal Bc1b1,Bb1b3,Bb3d3,Bd3d2][%mdl 32]} g5 {[%emt 0:04:34]} 29. Rb3 {[%emt 0:00:12]} f5 {[%emt 0:00:46]} 30. Rdb1 {[%emt 0:02:26]} Kf6 {[%emt 0:01:07]} 31. Rd1 {[%emt 0:02:11]} (31. a4 $5 {[%cal Rb4b5]}) 31... h6 {[%emt 0:03:54]} 32. Rbd3 {[%emt 0:00:53]} Ke7 {[%emt 0:01:46]} 33. R3d2 {[%emt 0:00:08]} Rdc8 {[%emt 0:02:24]} (33... Kf6 $11) 34. Bd3 {[%emt 0:00:16]} (34. f3 $1 $14) 34... e4 {[%emt 0:00:26]} 35. Bf1 {[%emt 0:01:16]} Nb5 {[%emt 0:01:16]} 36. Bxb5 {[%emt 0:03:15]} Rxb5 {[%emt 0:00:08]} 37. Nb3 {[%emt 0:00:09] Threatening Nd4.} Bd7 {[%emt 0:01:36]} 38. Rf1 {[%emt 0:02:34]} Rbb8 {[%emt 0:01:54]} 39. f3 {[%emt 0:01:21]} Rf8 {[%emt 0:00:19]} 40. Rdf2 {[%emt 0:02:52]} Rf7 {[%emt 0:09:12]} (40... exf3 $14 41. Rxf3 Rf6) 41. fxe4 {[%emt 0:01:46]} dxe4 {[%emt 0:00:08]} 42. Na5 {[%emt 0:00:48]} Rbf8 {[%emt 0:00:50]} (42... Rd8 $16) 43. Rd2 $18 {[%emt 0:00:23]} f4 {[%emt 0:02:10]} (43... Rc8 {might work better.} 44. Rfd1 Rc7) 44. Rd4 {[%emt 0:00:28]} f3 {[%emt 0:02:09]} (44... fxe3 $16 {keeps fighting.} 45. Rxe4+ Kd8 46. Rxf7 Rxf7 47. Rxe3 Kc7) 45. Rxe4+ {[%emt 0:00:19]} Kd8 {[%emt 0:00:04]} 46. Rf2 {[%emt 0:03:47]} (46. g4 $18) 46... Kc7 {[%emt 0:00:39] [#] Prevents Nb7.} ({Better is} 46... fxg2 47. Rxf7 (47. Rxg2 Rf1+ 48. Kh2 R8f3 $11) 47... Rxf7 48. Kxg2 Re7 49. Nb7+ Ke8) 47. Nc4 $1 $16 {[%emt 0:02:16]} h5 {[%emt 0:04:35]} (47... fxg2 $16 48. Rxf7 Rxf7 49. Kxg2 Kd8) 48. Ne5 {[%emt 0:04:46][%csl LRf3,LRf7]} Re7 {[%emt 0:03:09]} 49. Nxd7 {[%emt 0:00:06]} (49. Rxf3 Bf5 $16) (49. gxf3 Bxh3 50. f4 Bf5 $16) 49... Rxd7 {[%emt 0:00:14]} 50. Rxf3 {[%emt 0:00:06]} ({Resist} 50. gxf3 a5 51. Kg2 (51. bxa5 Rf5 $16) 51... a4) 50... Rxf3 {[%emt 0:00:14]} 51. gxf3 $18 {[%emt 0:00:04][%mdl 4096] Endgame KR-KR} Rd3 {[%emt 0:00:06]} 52. a4 {[%emt 0:00:41]} h4 {[%emt 0:00:15]} 53. Re7+ {[%emt 0:01:05]} Kb8 {[%emt 0:00:04]} 54. Re5 {[%emt 0:00:43]} Rd1+ {[%emt 0:00:33]} (54... Kc8 {was necessary.} 55. Kf2 Rb3 56. Rxg5 Rxb4) 55. Kf2 {[%emt 0:00:11]} Rd2+ {[%emt 0:00:05]} 56. Kf1 {[%emt 0:00:08]} Rd1+ {[%emt 0:00:44]} 57. Ke2 {[%emt 0:00:57]} Rh1 {[%emt 0:00:25]} (57... Ra1 $142 58. a5 Kb7 59. Rxg5 Ra2+ 60. Kd3 Ka6) 58. Rxg5 {[%emt 0:00:13]} Rxh3 {[%emt 0:00:16]} 59. Rg8+ {[%emt 0:00:23]} Kb7 {[%emt 0:00:16]} 60. Rg7+ {[%emt 0:00:14]} Kb8 {[%emt 0:00:11]} 61. Rh7 {[%emt 0:01:35]} Rh2+ {[%emt 0:00:19]} 62. Kf1 {[%emt 0:00:58]} h3 {[%emt 0:00:15]} 63. b5 {[%emt 0:00:43]} cxb5 {[%emt 0:00:22]} 64. axb5 {[%emt 0:00:05]} Rc2 {[%emt 0:00:07]} 65. Rxh3 {[%emt 0:03:06]} Rxc5 {[%emt 0:00:04]} 66. Ke2 {[%emt 0:00:26]} Rxb5 {[%emt 0:00:06]} 67. Kd3 {[%emt 0:00:33]} a5 {[%emt 0:00:31]} 68. Kc4 {[%emt 0:01:11] Against Rb3} Rb4+ {[%emt 0:01:08]} 69. Kc3 $2 {[%emt 0:00:05]} (69. Kc5 $18 {and the rest is easy. e4 is the strong threat.} Rb3 70. f4) 69... Rb5 $2 {[%emt 0:00:15][%mdl 8192]} (69... Rb6 $16 {is a better defense.} 70. f4 a4) 70. Rh4 $2 {[%emt 0:00:29]} (70. f4 $18 a4 71. Kc4) 70... Kc7 $2 {[%emt 0:01:17]} (70... Re5 $16 {was called for.}) 71. Rd4 {[%emt 0:00:23] Black must now prevent e4.} Kc6 $2 {[%emt 0:00:26]} (71... Rf5 {was worth a try.} 72. f4 Kb7) 72. f4 {[%emt 0:00:22] Strongly threatening e4.} Rf5 {[%emt 0:00:46]} 73. Kc4 {[%emt 0:01:07] Hoping for Rd8.} Rc5+ $2 {[%emt 0:01:51]} (73... Rf7 74. Re4 Ra7) 74. Kb3 {[%emt 0:00:38]} (74. Kd3 $142 {And now Rc4 would win.} Rf5 75. Rd8) 74... Kb5 $2 {[%emt 0:00:05] Prevents Rc4.} (74... Rf5 75. Kc4 Rf8) 75. e4 {[%emt 0:00:52]} Rh5 {[%emt 0:00:04]} 76. f5 {[%emt 0:00:46]} ({Stronger than} 76. Rd5+ Rxd5 77. exd5 Kc5 $11) 76... Rh3+ {[%emt 0:01:36]} (76... a4+ $142 77. Kc3 a3) 77. Kc2 {[%emt 0:00:05]} Rf3 {[%emt 0:00:45] [#]} 78. Kd2 $1 {[%emt 0:00:43]} a4 {[%emt 0:00:17][%cal Ba5a4,Ba4a3][%mdl 32]} 79. Rd3 {[%emt 0:00:50]} Rf1 {[%emt 0:02:48]} 80. Kc3 $2 {[%emt 0:00:38]} ({Only move:} 80. Ke2 $18 Rf4 81. Ke3) 80... a3 $1 $11 {[%emt 0:02:43] ( -> ...a2). The position is equal.} 81. Kb3 {[%emt 0:00:33]} Re1 {[%emt 0:00:19]} 82. Rd5+ {[%emt 0:00:33]} Kc6 {[%emt 0:00:19]} 83. Re5 {[%emt 0:00:05]} Re3+ {[%emt 0:00:16]} 84. Ka2 {[%emt 0:00:03]} Kd6 {[%emt 0:00:30]} 85. Re6+ {[%emt 0:00:39]} Kd7 {[%emt 0:01:55]} 86. e5 {[%emt 0:00:21]} Rf3 {[%emt 0:00:30]} 87. Rd6+ {[%emt 0:00:36]} Ke8 {[%emt 0:00:10]} 88. f6 {[%emt 0:00:14]} Kf7 $1 {[%emt 0:00:48]} 89. Rd7+ {[%emt 0:01:12]} Ke8 {[%emt 0:00:15]} 90. Re7+ {[%emt 0:00:24]} Kf8 {[%emt 0:00:05]} 91. Rb7 {[%emt 0:00:55] aiming for Rb3.} Re3 {[%emt 0:00:20]} 92. Re7 {[%emt 0:00:21]} Rf3 {[%emt 0:00:10]} 93. Rc7 {[%emt 0:00:37]} Re3 {[%emt 0:00:00]} 94. Rc8+ {[%emt 0:00:00]} Kf7 {[%emt 0:00:00]} 95. Rc7+ {[%emt 0:00:00]} Kf8 {[%emt 0:00:00]} 96. Re7 {[%emt 0:00:41]} Rf3 {[%emt 0:01:33] Black escapes into a draw.  Weighted Error Value: White=0.14 (very precise) /Black=0.37} 1/2-1/2